[Event "Live Chess"]
[Site "Chess.com"]
[Date "2023.05.21"]
[Round "-"]
[White "Dhaydon19"]
[Black "Leonid_Starozhilov"]
[Result "0-1"]
[WhiteElo "2691"]
[BlackElo "2635"]
[TimeControl "300"]
[EndTime "7:21:38 PDT"]
[Termination "Leonid_Starozhilov won by checkmate"]

1. d4 {[%clk 0:04:58.5]} 1... Nf6 {[%clk 0:04:58.7]} 2. Nf3 {[%clk 0:04:48]}
2... g6 {[%clk 0:04:55.7]} 3. g3 {[%clk 0:04:47.1]} 3... Bg7 {[%clk 0:04:55]} 4.
Bg2 {[%clk 0:04:42.9]} 4... O-O {[%clk 0:04:54.9]} 5. O-O {[%clk 0:04:42.1]}
5... d6 {[%clk 0:04:54.8]} 6. c4 {[%clk 0:04:38.9]} 6... c6 {[%clk 0:04:54.7]}
7. Nc3 {[%clk 0:04:38]} 7... Bf5 {[%clk 0:04:51.9]} 8. Re1 {[%clk 0:04:36.3]}
8... Ne4 {[%clk 0:04:49.7]} 9. Nh4 {[%clk 0:04:35.6]} 9... Nxc3 {[%clk
0:04:48.9]} 10. bxc3 {[%clk 0:04:33.4]} 10... Be6 {[%clk 0:04:48.6]} 11. Qb3
{[%clk 0:04:30.5]} 11... b5 {[%clk 0:04:47.1]} 12. d5 {[%clk 0:04:27.9]} 12...
bxc4 {[%clk 0:04:46]} 13. Qxc4 {[%clk 0:04:27.3]} 13... Bxd5 {[%clk 0:04:41.8]}
14. Bxd5 {[%clk 0:04:25.8]} 14... cxd5 {[%clk 0:04:41.1]} 15. Qxd5 {[%clk
0:04:25.4]} 15... Nd7 {[%clk 0:04:37.4]} 16. Bd2 {[%clk 0:04:23]} 16... Nb6
{[%clk 0:04:33.9]} 17. Qd3 {[%clk 0:04:21.5]} 17... Rc8 {[%clk 0:04:32.2]} 18.
Rab1 {[%clk 0:04:19.2]} 18... Qc7 {[%clk 0:04:29.9]} 19. Rec1 {[%clk 0:04:16.1]}
19... e6 {[%clk 0:04:21.7]} 20. Nf3 {[%clk 0:04:13.9]} 20... Nc4 {[%clk
0:04:18.2]} 21. Bf4 {[%clk 0:04:08.8]} 21... Qa5 {[%clk 0:04:11.5]} 22. Bxd6
{[%clk 0:03:58.6]} 22... Rfd8 {[%clk 0:03:54.7]} 23. Bb4 {[%clk 0:03:57]} 23...
Rxd3 {[%clk 0:03:53.6]} 24. Bxa5 {[%clk 0:03:55.7]} 24... Rxf3 {[%clk
0:03:52.8]} 25. exf3 {[%clk 0:03:53.7]} 25... Nxa5 {[%clk 0:03:52.1]} 26. c4
{[%clk 0:03:52.1]} 26... Rxc4 {[%clk 0:03:26.7]} 27. Rxc4 {[%clk 0:03:48.9]}
27... Nxc4 {[%clk 0:03:25.4]} 28. Rb4 {[%clk 0:03:45.1]} 28... Nb6 {[%clk
0:03:22.6]} 29. Rb5 {[%clk 0:03:42.4]} 29... Bd4 {[%clk 0:03:17.3]} 30. Kf1
{[%clk 0:03:41.5]} 30... Nd5 {[%clk 0:03:10.5]} 31. Rb7 {[%clk 0:03:39.9]} 31...
Bb6 {[%clk 0:03:06.2]} 32. a4 {[%clk 0:03:36.8]} 32... a5 {[%clk 0:02:57.2]} 33.
f4 {[%clk 0:03:32.7]} 33... Bc5 {[%clk 0:02:54.7]} 34. Rb8+ {[%clk 0:03:29.4]}
34... Kg7 {[%clk 0:02:53.8]} 35. Rc8 {[%clk 0:03:26.6]} 35... Bb4 {[%clk
0:02:52.8]} 36. Rc1 {[%clk 0:03:25.4]} 36... h5 {[%clk 0:02:45.7]} 37. Kg2
{[%clk 0:03:23.6]} 37... Kf6 {[%clk 0:02:44.5]} 38. Kf3 {[%clk 0:03:22.6]} 38...
Ke7 {[%clk 0:02:43.6]} 39. Ke4 {[%clk 0:03:21.2]} 39... Nc3+ {[%clk 0:02:42.1]}
40. Kd4 {[%clk 0:03:19.1]} 40... Nxa4 {[%clk 0:02:38.4]} 41. Rc7+ {[%clk
0:03:18.7]} 41... Kf6 {[%clk 0:02:37.2]} 42. h3 {[%clk 0:03:17.1]} 42... Nb6
{[%clk 0:02:33.1]} 43. g4 {[%clk 0:03:14.5]} 43... hxg4 {[%clk 0:02:33]} 44.
hxg4 {[%clk 0:03:13.7]} 44... Nd5 {[%clk 0:02:32.3]} 45. g5+ {[%clk 0:03:05.9]}
45... Kg7 {[%clk 0:02:31.3]} 46. Rd7 {[%clk 0:03:04.1]} 46... Bd2 {[%clk
0:02:29.2]} 47. Ra7 {[%clk 0:02:54.2]} 47... Nxf4 {[%clk 0:02:26.3]} 48. Ke4
{[%clk 0:02:52.3]} 48... Nd5 {[%clk 0:02:23.7]} 49. f3 {[%clk 0:02:50.4]} 49...
Bb4 {[%clk 0:02:20.8]} 50. Ke5 {[%clk 0:02:48]} 50... Bd2 {[%clk 0:02:17.4]} 51.
Ke4 {[%clk 0:02:46.2]} 51... Nb6 {[%clk 0:02:06.5]} 52. Ra6 {[%clk 0:02:42.4]}
52... Nd7 {[%clk 0:01:59.5]} 53. Rd6 {[%clk 0:02:38.9]} 53... Nc5+ {[%clk
0:01:56.7]} 54. Kd4 {[%clk 0:02:36.5]} 54... Bb4 {[%clk 0:01:55.1]} 55. Kc4
{[%clk 0:02:34.1]} 55... Ne4 {[%clk 0:01:51.6]} 56. Rd3 {[%clk 0:02:24.7]} 56...
Nxg5 {[%clk 0:01:49.5]} 57. Kd4 {[%clk 0:02:23.6]} 57... Nh7 {[%clk 0:01:45.7]}
58. Ke4 {[%clk 0:02:22.5]} 58... Nf6+ {[%clk 0:01:45.3]} 59. Ke5 {[%clk
0:02:21.8]} 59... Nd5 {[%clk 0:01:45.1]} 60. Ke4 {[%clk 0:02:20.6]} 60... a4
{[%clk 0:01:44.2]} 61. Rd4 {[%clk 0:02:19.6]} 61... a3 {[%clk 0:01:43.4]} 62.
Rd1 {[%clk 0:02:18.7]} 62... Nc3+ {[%clk 0:01:41.6]} 63. Kd3 {[%clk 0:02:17.1]}
63... Nxd1 {[%clk 0:01:41.5]} 64. Ke2 {[%clk 0:02:16.7]} 64... a2 {[%clk
0:01:41.1]} 65. Kxd1 {[%clk 0:02:16.2]} 65... a1=Q+ {[%clk 0:01:40.4]} 66. Ke2
{[%clk 0:02:14.9]} 66... Qc3 {[%clk 0:01:40]} 67. f4 {[%clk 0:02:13.8]} 67...
Kf6 {[%clk 0:01:39.5]} 68. f5 {[%clk 0:02:13]} 68... Kxf5 {[%clk 0:01:38.7]} 69.
Kf1 {[%clk 0:02:12.3]} 69... g5 {[%clk 0:01:38.3]} 70. Kg2 {[%clk 0:02:12.2]}
70... e5 {[%clk 0:01:37.8]} 71. Kh2 {[%clk 0:02:11.5]} 71... g4 {[%clk
0:01:37.5]} 72. Kh1 {[%clk 0:02:11.3]} 72... e4 {[%clk 0:01:37.3]} 73. Kg2
{[%clk 0:02:10.5]} 73... Kg5 {[%clk 0:01:36.9]} 74. Kh2 {[%clk 0:02:09.9]} 74...
Bf8 {[%clk 0:01:36.6]} 75. Kh1 {[%clk 0:02:09.3]} 75... f5 {[%clk 0:01:36.5]}
76. Kg2 {[%clk 0:02:08.6]} 76... f4 {[%clk 0:01:36.4]} 77. Kh2 {[%clk
0:02:08.2]} 77... Qc2+ {[%clk 0:01:35.7]} 78. Kh1 {[%clk 0:02:07.1]} 78... g3
{[%clk 0:01:35.1]} 79. Kg1 {[%clk 0:02:05.8]} 79... f3 {[%clk 0:01:34.7]} 80.
Kh1 {[%clk 0:02:05]} 80... e3 {[%clk 0:01:34.2]} 81. Kg1 {[%clk 0:02:04]} 81...
e2 {[%clk 0:01:25.3]} 82. Kh1 {[%clk 0:02:01.8]} 82... Qh7+ {[%clk 0:01:24.8]}
83. Kg1 {[%clk 0:02:00.7]} 83... Bc5# {[%clk 0:01:24.4]} 0-1

[Event "Live Chess"]
[Site "Chess.com"]
[Date "2023.05.21"]
[Round "-"]
[White "grillage"]
[Black "Hacker_2009"]
[Result "0-1"]
[WhiteElo "1779"]
[BlackElo "1952"]
[TimeControl "300"]
[EndTime "7:21:51 PDT"]
[Termination "Hacker_2009 won by resignation"]

1. d4 {[%clk 0:04:57.3]} 1... Nf6 {[%clk 0:04:57.6]} 2. Nc3 {[%clk 0:04:55.3]}
2... d5 {[%clk 0:04:55.4]} 3. Bf4 {[%clk 0:04:53.1]} 3... a6 {[%clk 0:04:53.8]}
4. e3 {[%clk 0:04:51.3]} 4... e6 {[%clk 0:04:52.8]} 5. Nf3 {[%clk 0:04:49.6]}
5... c5 {[%clk 0:04:51.3]} 6. dxc5 {[%clk 0:04:48.1]} 6... Bxc5 {[%clk
0:04:50.2]} 7. Bd3 {[%clk 0:04:44]} 7... O-O {[%clk 0:04:49.3]} 8. O-O {[%clk
0:04:42.7]} 8... b5 {[%clk 0:04:48.3]} 9. Re1 {[%clk 0:04:18.4]} 9... Bb7 {[%clk
0:04:46.9]} 10. a4 {[%clk 0:04:16.1]} 10... b4 {[%clk 0:04:43]} 11. Nb1 {[%clk
0:04:15]} 11... a5 {[%clk 0:04:41.1]} 12. c3 {[%clk 0:04:13.9]} 12... Nc6 {[%clk
0:04:39.3]} 13. Nbd2 {[%clk 0:04:08.4]} 13... bxc3 {[%clk 0:04:35]} 14. bxc3
{[%clk 0:04:07.1]} 14... Bd6 {[%clk 0:04:34.3]} 15. Bg5 {[%clk 0:04:05.1]} 15...
Be7 {[%clk 0:04:33.2]} 16. e4 {[%clk 0:04:03]} 16... dxe4 {[%clk 0:04:31.1]} 17.
Nxe4 {[%clk 0:04:00.7]} 17... Nxe4 {[%clk 0:04:27.5]} 18. Bxe7 {[%clk
0:03:57.1]} 18... Nxe7 {[%clk 0:04:26.5]} 19. Bxe4 {[%clk 0:03:54.9]} 19... Bxe4
{[%clk 0:04:25.3]} 20. Rxe4 {[%clk 0:03:53.1]} 20... Qc7 {[%clk 0:04:23.7]} 21.
Rc1 {[%clk 0:03:47.2]} 21... Rfd8 {[%clk 0:04:20.8]} 22. Rd4 {[%clk 0:03:46.3]}
22... Nf5 {[%clk 0:04:18.4]} 23. Rd3 {[%clk 0:03:37]} 23... h6 {[%clk
0:04:01.8]} 24. Nd4 {[%clk 0:03:35.9]} 24... Nxd4 {[%clk 0:03:59.7]} 25. cxd4
{[%clk 0:03:32.4]} 25... Qd7 {[%clk 0:03:56.5]} 26. Rc5 {[%clk 0:03:29.2]} 26...
Rdb8 {[%clk 0:03:48.3]} 27. Rc4 {[%clk 0:03:20.4]} 27... Rb4 {[%clk 0:03:41.1]}
28. Rdc3 {[%clk 0:03:09.6]} 28... Rab8 {[%clk 0:03:34.1]} 29. g3 {[%clk
0:03:03.9]} 29... Rb1 {[%clk 0:03:31]} 30. Rc1 {[%clk 0:03:03]} 30... R1b4
{[%clk 0:03:26.7]} 31. d5 {[%clk 0:02:55.2]} 31... exd5 {[%clk 0:03:23.5]} 32.
Rd4 {[%clk 0:02:46.1]} 32... Rxd4 {[%clk 0:03:02.8]} 33. Qxd4 {[%clk 0:02:44.8]}
33... Rb4 {[%clk 0:03:00]} 34. Qd1 {[%clk 0:02:21.1]} 34... d4 {[%clk
0:02:47.7]} 35. Rc5 {[%clk 0:02:13.9]} 35... Qb7 {[%clk 0:02:36.3]} 36. h4
{[%clk 0:01:54.1]} 36... Rb1 {[%clk 0:02:31.8]} 37. Rc1 {[%clk 0:01:53.1]} 37...
Rxc1 {[%clk 0:02:29]} 38. Qxc1 {[%clk 0:01:52.3]} 38... Qd7 {[%clk 0:02:27.5]}
39. Qd2 {[%clk 0:01:50.6]} 39... Qxa4 {[%clk 0:02:25.9]} 40. Qf4 {[%clk
0:01:43.2]} 40... Qb4 {[%clk 0:02:19.2]} 41. Qe5 {[%clk 0:01:38.6]} 41... d3
{[%clk 0:01:29.8]} 42. Qe8+ {[%clk 0:01:27]} 42... Kh7 {[%clk 0:01:28.3]} 43.
Qd7 {[%clk 0:01:25.9]} 43... d2 {[%clk 0:01:25.9]} 44. Qf5+ {[%clk 0:01:25.1]}
44... Kg8 {[%clk 0:01:22.8]} 45. Qc8+ {[%clk 0:01:23.9]} 45... Qf8 {[%clk
0:01:02.5]} 46. Qd7 {[%clk 0:01:23]} 46... Qa8 {[%clk 0:00:59]} 47. Qxd2 {[%clk
0:01:20.2]} 47... a4 {[%clk 0:00:58.9]} 48. Qa2 {[%clk 0:01:17.3]} 48... a3
{[%clk 0:00:58.8]} 49. Kh2 {[%clk 0:01:14.2]} 49... Qa4 {[%clk 0:00:57.2]} 50.
Qd5 {[%clk 0:01:12.2]} 50... a2 {[%clk 0:00:47.9]} 51. Qd8+ {[%clk 0:01:10.2]}
51... Kh7 {[%clk 0:00:47.2]} 52. Qc8 {[%clk 0:01:06]} 52... a1=Q {[%clk
0:00:44.3]} 53. Qf5+ {[%clk 0:01:04.7]} 53... g6 {[%clk 0:00:43.4]} 54. Qxf7+
{[%clk 0:01:03.1]} 54... Qg7 {[%clk 0:00:42.7]} 0-1

[Event "Live Chess"]
[Site "Chess.com"]
[Date "2023.05.21"]
[Round "-"]
[White "LL220284LL"]
[Black "viktorskliarov"]
[Result "0-1"]
[WhiteElo "2249"]
[BlackElo "2645"]
[TimeControl "300"]
[EndTime "7:21:53 PDT"]
[Termination "viktorskliarov won by resignation"]

1. d4 {[%clk 0:04:57.1]} 1... Nf6 {[%clk 0:04:55.9]} 2. Bf4 {[%clk 0:04:56.2]}
2... g6 {[%clk 0:04:54.5]} 3. e3 {[%clk 0:04:55.4]} 3... Bg7 {[%clk 0:04:53.9]}
4. Nf3 {[%clk 0:04:54.9]} 4... O-O {[%clk 0:04:53.2]} 5. h4 {[%clk 0:04:54.2]}
5... d6 {[%clk 0:04:51.4]} 6. Nbd2 {[%clk 0:04:52.9]} 6... c5 {[%clk 0:04:49.2]}
7. c3 {[%clk 0:04:51.4]} 7... Nc6 {[%clk 0:04:47.7]} 8. Be2 {[%clk 0:04:49.9]}
8... Bg4 {[%clk 0:04:46.1]} 9. Nh2 {[%clk 0:04:41.5]} 9... Bxe2 {[%clk
0:04:42.9]} 10. Qxe2 {[%clk 0:04:41.4]} 10... Qb6 {[%clk 0:04:40.8]} 11. Ndf3
{[%clk 0:04:39.4]} 11... Rfe8 {[%clk 0:04:32]} 12. dxc5 {[%clk 0:04:26.5]} 12...
Qxc5 {[%clk 0:04:29.2]} 13. g4 {[%clk 0:04:20]} 13... e5 {[%clk 0:04:22]} 14.
Bg5 {[%clk 0:04:18.6]} 14... Ne4 {[%clk 0:04:18.6]} 15. h5 {[%clk 0:04:12.4]}
15... h6 {[%clk 0:04:07]} 16. Bxh6 {[%clk 0:04:08]} 16... Bxh6 {[%clk 0:04:00]}
17. hxg6 {[%clk 0:04:06.8]} 17... fxg6 {[%clk 0:03:55]} 18. g5 {[%clk
0:04:06.2]} 18... Bg7 {[%clk 0:03:42.2]} 19. Ng4 {[%clk 0:04:05.7]} 19... Nxc3
{[%clk 0:02:52.6]} 20. Qc2 {[%clk 0:03:58.2]} 20... e4 {[%clk 0:02:51.5]} 21.
Nh4 {[%clk 0:03:54.3]} 21... Qxg5 {[%clk 0:02:43.3]} 22. bxc3 {[%clk 0:03:51.9]}
22... Qxg4 {[%clk 0:02:41.3]} 23. Qb3+ {[%clk 0:03:46.9]} 23... Qe6 {[%clk
0:02:30.8]} 24. Qc2 {[%clk 0:03:42.2]} 24... d5 {[%clk 0:02:24]} 25. O-O-O
{[%clk 0:03:39.6]} 25... Ne5 {[%clk 0:02:22.2]} 26. Rdg1 {[%clk 0:03:35.9]}
26... Rac8 {[%clk 0:02:19.6]} 0-1

[Event "Live Chess"]
[Site "Chess.com"]
[Date "2023.05.21"]
[Round "-"]
[White "Long1968"]
[Black "Tushinskiy"]
[Result "0-1"]
[WhiteElo "956"]
[BlackElo "2203"]
[TimeControl "300"]
[EndTime "7:21:54 PDT"]
[Termination "Tushinskiy won on time"]

1. e4 {[%clk 0:04:55.8]} 1... e5 {[%clk 0:04:58.4]} 2. f4 {[%clk 0:04:51.2]}
2... d6 {[%clk 0:04:58.3]} 3. Nf3 {[%clk 0:04:44.5]} 3... Bg4 {[%clk 0:04:57.1]}
4. Bc4 {[%clk 0:04:38.2]} 4... Nd7 {[%clk 0:04:55.2]} 5. O-O {[%clk 0:04:11.4]}
5... Ngf6 {[%clk 0:04:40.6]} 6. Nc3 {[%clk 0:03:57]} 6... Be7 {[%clk 0:04:38.2]}
7. h3 {[%clk 0:03:46.7]} 7... Bxf3 {[%clk 0:04:36.5]} 8. Qxf3 {[%clk 0:03:42.6]}
8... O-O {[%clk 0:04:35.5]} 9. d3 {[%clk 0:03:26.9]} 9... c6 {[%clk 0:04:33.8]}
10. g4 {[%clk 0:03:12.6]} 10... exf4 {[%clk 0:04:29.7]} 11. Qxf4 {[%clk
0:03:02.3]} 11... Ne5 {[%clk 0:04:28.4]} 12. Bb3 {[%clk 0:02:50.8]} 12... b5
{[%clk 0:04:26.2]} 13. d4 {[%clk 0:02:21.3]} 13... Ng6 {[%clk 0:04:24]} 14. Qf5
{[%clk 0:02:11.1]} 14... a5 {[%clk 0:04:19.4]} 15. g5 {[%clk 0:01:34.5]} 15...
Nh5 {[%clk 0:04:02.2]} 16. Bxf7+ {[%clk 0:00:53.1]} 16... Kh8 {[%clk 0:03:59.2]}
17. Qf3 {[%clk 0:00:45.9]} 17... Bxg5 {[%clk 0:03:45.8]} 18. Qxh5 {[%clk
0:00:19.8]} 18... Bxc1 {[%clk 0:03:42.4]} 19. Bxg6 {[%clk 0:00:11.3]} 19...
Rxf1+ {[%clk 0:03:39.5]} 20. Kxf1 {[%clk 0:00:02.2]} 20... Qf6+ {[%clk
0:03:37.4]} 0-1

[Event "Live Chess"]
[Site "Chess.com"]
[Date "2023.05.21"]
[Round "-"]
[White "TheSmoulderingMaster"]
[Black "robotking06"]
[Result "1-0"]
[WhiteElo "1656"]
[BlackElo "308"]
[TimeControl "300"]
[EndTime "7:21:57 PDT"]
[Termination "TheSmoulderingMaster won by resignation"]

1. e4 {[%clk 0:04:58.1]} 1... c5 {[%clk 0:04:50.9]} 2. Nf3 {[%clk 0:04:56.5]}
2... Nf6 {[%clk 0:04:46.9]} 3. Nc3 {[%clk 0:04:53.4]} 3... d5 {[%clk 0:04:45.7]}
4. e5 {[%clk 0:04:50.9]} 4... Ne4 {[%clk 0:04:42.8]} 5. Bb5+ {[%clk 0:04:45.3]}
5... Bd7 {[%clk 0:04:38.5]} 6. Bd3 {[%clk 0:04:39.1]} 6... Nxc3 {[%clk 0:04:28]}
7. dxc3 {[%clk 0:04:39]} 7... d4 {[%clk 0:04:26.4]} 8. cxd4 {[%clk 0:04:37]}
8... cxd4 {[%clk 0:04:25.6]} 9. Nxd4 {[%clk 0:04:35.7]} 9... Bg4 {[%clk
0:04:23.9]} 10. Qxg4 {[%clk 0:04:32.3]} 10... Qxd4 {[%clk 0:04:22.9]} 11. Qxd4
{[%clk 0:04:30.2]} 1-0

[Event "Live Chess"]
[Site "Chess.com"]
[Date "2023.05.21"]
[Round "-"]
[White "Alfiedog12"]
[Black "JoeRoot66"]
[Result "0-1"]
[WhiteElo "870"]
[BlackElo "1903"]
[TimeControl "300"]
[EndTime "7:21:58 PDT"]
[Termination "JoeRoot66 won by resignation"]

1. d4 {[%clk 0:04:57.7]} 1... d5 {[%clk 0:04:59]} 2. Bf4 {[%clk 0:04:57.1]} 2...
Nf6 {[%clk 0:04:57.6]} 3. Nf3 {[%clk 0:04:56.6]} 3... c5 {[%clk 0:04:57]} 4. e3
{[%clk 0:04:56]} 4... Nc6 {[%clk 0:04:56.6]} 5. c3 {[%clk 0:04:55]} 5... Qb6
{[%clk 0:04:56]} 6. Qc2 {[%clk 0:04:52.3]} 6... cxd4 {[%clk 0:04:54.7]} 7. exd4
{[%clk 0:04:44.7]} 7... Bf5 {[%clk 0:04:53.8]} 8. Qb3 {[%clk 0:04:36]} 8... Qxb3
{[%clk 0:04:45]} 9. axb3 {[%clk 0:04:34.6]} 9... a5 {[%clk 0:04:43.4]} 10. Nbd2
{[%clk 0:04:25.3]} 10... e6 {[%clk 0:04:40.4]} 11. Bc7 {[%clk 0:04:20]} 11...
Rc8 {[%clk 0:04:35.9]} 12. Bb6 {[%clk 0:04:08.4]} 12... Bd6 {[%clk 0:04:31]} 13.
Bb5 {[%clk 0:04:05.3]} 13... O-O {[%clk 0:04:29.6]} 14. O-O {[%clk 0:04:04]}
14... Ne4 {[%clk 0:04:23.1]} 15. Bxa5 {[%clk 0:03:49.7]} 15... Ra8 {[%clk
0:04:12.7]} 16. Bxc6 {[%clk 0:03:45.6]} 16... bxc6 {[%clk 0:04:11.1]} 17. Ne5
{[%clk 0:03:42.1]} 17... Nxd2 {[%clk 0:04:07.1]} 18. Rfe1 {[%clk 0:03:32.6]}
18... Nxb3 {[%clk 0:04:02.4]} 19. Ra4 {[%clk 0:03:24.3]} 19... Bxe5 {[%clk
0:03:57.2]} 20. dxe5 {[%clk 0:03:22.5]} 20... Rxa5 {[%clk 0:03:56.4]} 21. Rxa5
{[%clk 0:03:21]} 21... Nxa5 {[%clk 0:03:56.3]} 22. Ra1 {[%clk 0:03:18.7]} 22...
Nc4 {[%clk 0:03:53.8]} 0-1

[Event "Live Chess"]
[Site "Chess.com"]
[Date "2023.05.21"]
[Round "-"]
[White "LanceMaster23"]
[Black "FlyingChessKestrel13"]
[Result "1/2-1/2"]
[WhiteElo "1964"]
[BlackElo "2069"]
[TimeControl "300"]
[EndTime "7:22:04 PDT"]
[Termination "Game drawn by repetition"]

1. Nf3 {[%clk 0:04:59.3]} 1... d5 {[%clk 0:04:57.9]} 2. d4 {[%clk 0:04:58.2]}
2... Nf6 {[%clk 0:04:55.9]} 3. Bf4 {[%clk 0:04:57.8]} 3... e6 {[%clk 0:04:53.5]}
4. e3 {[%clk 0:04:53.2]} 4... b6 {[%clk 0:04:51.9]} 5. Nbd2 {[%clk 0:04:51.7]}
5... Bb7 {[%clk 0:04:50.2]} 6. c3 {[%clk 0:04:51]} 6... Nbd7 {[%clk 0:04:48.9]}
7. Be2 {[%clk 0:04:49.7]} 7... Ne4 {[%clk 0:04:47.7]} 8. Nxe4 {[%clk 0:04:48.6]}
8... dxe4 {[%clk 0:04:46.6]} 9. Nd2 {[%clk 0:04:48]} 9... Bd6 {[%clk 0:04:44.8]}
10. Bg3 {[%clk 0:04:45.2]} 10... O-O {[%clk 0:04:41]} 11. Qc2 {[%clk 0:04:44.2]}
11... f5 {[%clk 0:04:39]} 12. Bc4 {[%clk 0:04:43.9]} 12... Qe7 {[%clk
0:04:37.2]} 13. Qb3 {[%clk 0:04:39.5]} 13... Rfe8 {[%clk 0:04:33.3]} 14. O-O-O
{[%clk 0:04:31.9]} 14... a5 {[%clk 0:04:30.8]} 15. a4 {[%clk 0:04:28.7]} 15...
Nf6 {[%clk 0:04:26.6]} 16. Be2 {[%clk 0:04:00.1]} 16... Kh8 {[%clk 0:04:16]} 17.
Bxd6 {[%clk 0:03:50.1]} 17... cxd6 {[%clk 0:04:09.1]} 18. Qxb6 {[%clk
0:03:03.2]} 18... Reb8 {[%clk 0:04:06.6]} 19. Nc4 {[%clk 0:02:47.2]} 19... Bd5
{[%clk 0:03:42.8]} 20. Qxd6 {[%clk 0:02:32.8]} 20... Qb7 {[%clk 0:03:41.5]} 21.
Qa3 {[%clk 0:02:31.5]} 21... Qc6 {[%clk 0:03:32.4]} 22. Ne5 {[%clk 0:02:27.1]}
22... Qe8 {[%clk 0:03:27.4]} 23. Bb5 {[%clk 0:02:25.2]} 23... Qc8 {[%clk
0:02:44.8]} 24. c4 {[%clk 0:01:55.7]} 24... Rxb5 {[%clk 0:02:25.9]} 25. axb5
{[%clk 0:01:49.9]} 25... Bxc4 {[%clk 0:02:25.4]} 26. Nxc4 {[%clk 0:01:37.3]}
26... Qxc4+ {[%clk 0:02:23.3]} 27. Kb1 {[%clk 0:01:33.3]} 27... Qxb5 {[%clk
0:02:22.9]} 28. Rc1 {[%clk 0:01:26.2]} 28... Rb8 {[%clk 0:02:18.7]} 29. Rc2
{[%clk 0:01:13.6]} 29... Nd5 {[%clk 0:02:14.9]} 30. Rhc1 {[%clk 0:01:11.6]}
30... h6 {[%clk 0:02:12]} 31. Rc8+ {[%clk 0:01:10.7]} 31... Rxc8 {[%clk
0:02:11.1]} 32. Rxc8+ {[%clk 0:01:10.2]} 32... Kh7 {[%clk 0:02:09.9]} 33. Rc1
{[%clk 0:00:31.5]} 33... Nb4 {[%clk 0:02:01]} 34. Qb3 {[%clk 0:00:28.1]} 34...
Qe2 {[%clk 0:01:53.4]} 35. Qxe6 {[%clk 0:00:23.4]} 35... Qxf2 {[%clk 0:01:52.1]}
36. Rc8 {[%clk 0:00:11.4]} 36... Qf1+ {[%clk 0:01:46]} 37. Rc1 {[%clk 0:00:11]}
37... Qd3+ {[%clk 0:01:44]} 38. Ka1 {[%clk 0:00:10.6]} 38... Nc2+ {[%clk
0:01:28.5]} 39. Rxc2 {[%clk 0:00:10]} 39... Qxc2 {[%clk 0:01:27.7]} 40. Qxf5+
{[%clk 0:00:09.9]} 40... Kg8 {[%clk 0:01:25.7]} 41. Qe6+ {[%clk 0:00:09.5]}
41... Kh7 {[%clk 0:01:24.7]} 42. Qf5+ {[%clk 0:00:09]} 42... Kg8 {[%clk
0:01:24]} 43. Qe6+ {[%clk 0:00:08.8]} 43... Kh7 {[%clk 0:01:23.3]} 44. Qf5+
{[%clk 0:00:08.4]} 1/2-1/2

[Event "Live Chess"]
[Site "Chess.com"]
[Date "2023.05.21"]
[Round "-"]
[White "WilliWeisswurst"]
[Black "chessfiction"]
[Result "0-1"]
[WhiteElo "1768"]
[BlackElo "2308"]
[TimeControl "300"]
[EndTime "7:22:05 PDT"]
[Termination "chessfiction won by resignation"]

1. e4 {[%clk 0:04:58.3]} 1... d5 {[%clk 0:04:58.7]} 2. exd5 {[%clk 0:04:57.5]}
2... c6 {[%clk 0:04:58]} 3. Nf3 {[%clk 0:04:54.4]} 3... e5 {[%clk 0:04:57]} 4.
d3 {[%clk 0:04:47.9]} 4... Bg4 {[%clk 0:04:53.3]} 5. Be2 {[%clk 0:04:45.5]} 5...
Bd6 {[%clk 0:04:51.9]} 6. h3 {[%clk 0:04:44.4]} 6... Bh5 {[%clk 0:04:50.3]} 7.
O-O {[%clk 0:04:42.3]} 7... Nf6 {[%clk 0:04:48.4]} 8. dxc6 {[%clk 0:04:40.4]}
8... Nxc6 {[%clk 0:04:47]} 9. Nc3 {[%clk 0:04:39.2]} 9... Qe7 {[%clk 0:04:43.2]}
10. Bg5 {[%clk 0:04:37.6]} 10... O-O-O {[%clk 0:04:41.9]} 11. Nd5 {[%clk
0:04:28]} 11... Qe6 {[%clk 0:04:40.9]} 12. c4 {[%clk 0:04:15.2]} 12... h6 {[%clk
0:04:15]} 13. Be3 {[%clk 0:03:55.4]} 13... Nxd5 {[%clk 0:04:04.4]} 14. cxd5
{[%clk 0:03:52.8]} 14... Qxd5 {[%clk 0:04:04.3]} 15. Qa4 {[%clk 0:03:44]} 15...
f5 {[%clk 0:03:58.8]} 16. Bxa7 {[%clk 0:03:32.7]} 16... e4 {[%clk 0:03:50.9]}
17. dxe4 {[%clk 0:03:19.2]} 17... fxe4 {[%clk 0:03:50.8]} 18. Bc4 {[%clk
0:02:47.2]} 18... Qa5 {[%clk 0:03:29.7]} 19. Be6+ {[%clk 0:02:27.3]} 19... Kc7
{[%clk 0:03:26.6]} 20. Qxa5+ {[%clk 0:01:31.4]} 20... Nxa5 {[%clk 0:03:26.5]}
21. Rac1+ {[%clk 0:01:27.4]} 21... Nc6 {[%clk 0:03:24.9]} 22. Nd4 {[%clk
0:01:20.8]} 22... Rde8 {[%clk 0:03:07.3]} 23. Nb5+ {[%clk 0:01:16.5]} 23... Kd8
{[%clk 0:03:06.5]} 24. Bb6+ {[%clk 0:00:54.3]} 24... Ke7 {[%clk 0:03:00]} 25.
Nxd6 {[%clk 0:00:50.6]} 25... Kxd6 {[%clk 0:02:56.1]} 26. Bb3 {[%clk 0:00:41.3]}
26... Be2 {[%clk 0:02:51.4]} 27. Rfe1 {[%clk 0:00:40.2]} 27... Bd3 {[%clk
0:02:50.3]} 28. Rcd1 {[%clk 0:00:34.5]} 28... Ne5 {[%clk 0:02:43.3]} 29. Rc1
{[%clk 0:00:30.8]} 29... Rc8 {[%clk 0:02:32.9]} 30. Bc5+ {[%clk 0:00:28.2]}
30... Rxc5 {[%clk 0:02:30.9]} 0-1